[Event "26th OIBM 2023"]
[Site "Gmund am Tegernsee"]
[Date "2023.10.31"]
[Round "4.38"]
[White "Dolzhykova, Kateryna"]
[Black "Baeuml, Ulrich"]
[Result "1-0"]
[ECO "C00"]
[WhiteElo "2336"]
[BlackElo "2112"]
[Annotator "RC"]
[PlyCount "51"]
[EventDate "2023.10.04"]
[EventType "swiss"]
[EventCountry "GER"]
[SourceTitle "playchess.com"]
[Source "ChessBase"]
[SourceQuality "1"]
[TimeControl "40/5400+30:1800+30"]

1. e4 {[%emt 0:00:02]} e6 {[%emt 0:00:26]} 2. d3 {[%emt 0:00:07]} d5 {[%emt 0:00:34]} 3. Nd2 {[%emt 0:00:06]} c5 {[%emt 0:00:15]} 4. Ngf3 {[%emt 0:00:07]} Nc6 {[%emt 0:00:27]} 5. g3 {[%emt 0:00:10]} Nf6 {[%emt 0:00:20]} 6. Bg2 {[%emt 0:00:12]} Be7 {[%emt 0:00:34]} 7. O-O {[%emt 0:00:07]} dxe4 {[%emt 0:00:23]} 8. dxe4 {[%emt 0:00:18]} e5 {[%emt 0:00:09]} 9. Nc4 {[%emt 0:02:59]} Qc7 {[%emt 0:00:26]} 10. Ne3 {[%emt 0:02:12]} O-O {[%emt 0:01:56]} 11. c3 {[%emt 0:04:28]} Rd8 {[%emt 0:00:45]} 12. Qc2 {[%emt 0:01:05]} h6 {[%emt 0:00:43]} 13. Nd5 {[%emt 0:02:05]} Qb8 {[%emt 0:05:27]} 14. Rd1 {[%emt 0:06:15]} Bf8 {[%emt 0:10:37]} 15. Bxh6 {[%emt 0:04:39]} Nxd5 {[%emt 0:00:06]} 16. exd5 {[%emt 0:00:06]} Ne7 {[%emt 0:00:47]} 17. Bg5 {[%emt 0:03:33]} Bf5 {[%emt 0:04:36]} 18. Qb3 {[%emt 0:00:39]} Qc7 {[%emt 0:05:26]} 19. Nd2 {[%emt 0:09:48]} Bg4 {[%emt 0:10:27]} 20. Re1 {[%emt 0:01:08]} Rd7 {[%emt 0:07:34]} 21. Nc4 {[%emt 0:02:38]} Ng6 {[%emt 0:04:38]} 22. Ne3 {[%emt 0:00:43]} Bh5 {[%emt 0:03:37]} 23. g4 {[%emt 0:00:39]} Nf4 {[%emt 0:01:40]} 24. gxh5 {[%emt 0:00:46]} Nxg2 {[%emt 0:00:38]} 25. Kxg2 {[%emt 0:00:16]} e4 {[%emt 0:00:54]} 26. Qd1 {[%emt 0:01:42]} 1-0

[Event "26th OIBM 2023"]
[Site "Gmund am Tegernsee"]
[Date "2023.10.31"]
[Round "4.39"]
[White "Gaerths, Ronny"]
[Black "Zude, Arno"]
[Result "1-0"]
[ECO "D00"]
[WhiteElo "2139"]
[BlackElo "2333"]
[Annotator "RC"]
[PlyCount "89"]
[EventDate "2023.10.04"]
[EventType "swiss"]
[EventCountry "GER"]
[SourceTitle "playchess.com"]
[Source "ChessBase"]
[SourceQuality "1"]
[TimeControl "40/5400+30:1800+30"]

1. d4 {[%emt 0:00:18]} Nf6 {[%emt 0:00:10]} 2. Nc3 {[%emt 0:01:18]} d5 {[%emt 0:00:14]} 3. Bf4 {[%emt 0:00:49]} c5 {[%emt 0:00:20]} 4. e4 {[%emt 1:30:05]} dxe4 {[%emt 0:50:04]} 5. dxc5 {[%emt 0:00:00]} Nc6 {[%emt 0:01:41]} 6. Qxd8+ {[%emt 0:00:00]} Kxd8 {[%emt 0:01:01]} 7. O-O-O+ {[%emt 0:00:00]} Bd7 {[%emt 0:00:55]} 8. Bb5 {[%emt 0:00:00]} Ke8 {[%emt 0:06:00]} 9. Nge2 {[%emt 0:00:00]} Rc8 {[%emt 0:07:52]} 10. Ng3 {[%emt 0:00:00]} e5 {[%emt 0:09:15]} 11. Bxc6 {[%emt 0:00:00]} exf4 {[%emt 0:05:15]} 12. Bxd7+ {[%emt 0:00:00]} Nxd7 {[%emt 0:00:01]} 13. Ngxe4 {[%emt 0:00:00]} Nxc5 {[%emt 0:00:31]} 14. Rhe1 {[%emt 0:00:00]} Ne6 {[%emt 0:00:29]} 15. Nb5 {[%emt 0:00:00]} Rc6 {[%emt 0:00:38]} 16. Nxa7 {[%emt 0:00:00]} Ra6 {[%emt 0:00:37]} 17. Nb5 {[%emt 0:00:00]} Rxa2 {[%emt 0:00:46]} 18. Kb1 {[%emt 0:00:00]} Ra5 {[%emt 0:00:26]} 19. Nc7+ {[%emt 0:00:00]} Ke7 {[%emt 0:00:02]} 20. Nd5+ {[%emt 0:00:00]} Ke8 {[%emt 0:00:20]} 21. Nxf4 {[%emt 0:00:00]} Re5 {[%emt 0:04:27]} 22. Nxe6 {[%emt 0:00:00]} Rxe6 {[%emt 0:00:15]} 23. Nd6+ {[%emt 0:00:00]} Bxd6 {[%emt 0:00:22]} 24. Rxe6+ {[%emt 0:00:00]} fxe6 {[%emt 0:00:06]} 25. Rxd6 {[%emt 0:00:00]} Rf8 {[%emt 0:00:21]} 26. Rxe6+ {[%emt 0:00:00]} Kd7 {[%emt 0:00:02]} 27. Re2 {[%emt 0:00:00]} g5 {[%emt 0:02:26]} 28. h3 {[%emt 0:00:00]} Kd6 {[%emt 0:00:50]} 29. c3 {[%emt 0:00:10]} h6 {[%emt 0:02:07]} 30. Kc2 {[%emt 0:00:07]} Ra8 {[%emt 0:01:10]} 31. Rd2+ {[%emt 0:00:37]} Kc6 {[%emt 0:00:27]} 32. Kd3 {[%emt 0:00:35]} b5 {[%emt 0:01:37]} 33. Ke4 {[%emt 0:03:20]} Rf8 {[%emt 0:00:20]} 34. g3 {[%emt 0:01:09]} Kc5 {[%emt 0:01:32]} 35. f4 {[%emt 0:04:05]} gxf4 {[%emt 0:01:07]} 36. gxf4 {[%emt 0:00:10]} Re8+ {[%emt 0:00:02]} 37. Kf3 {[%emt 0:00:37]} Rf8 {[%emt 0:00:10]} 38. Rd4 {[%emt 0:01:52]} Kc6 {[%emt 0:01:17]} 39. Ke4 {[%emt 0:00:26]} Re8+ {[%emt 0:00:16]} 40. Kf5 {[%emt 0:00:41]} Re2 {[%emt 0:00:07]} 41. Kg6 {[%emt 0:32:12]} Rxb2 {[%emt 0:31:51]} 42. f5 {[%emt 0:00:00]} Rh2 {[%emt 0:00:00]} 43. f6 {[%emt 0:00:00]} Rxh3 {[%emt 0:00:00]} 44. Rf4 {[%emt 0:00:00]} Rg3+ {[%emt 0:00:00]} 45. Kh7 {[%emt 0:00:00]} 1-0

[Event "26th OIBM 2023"]
[Site "Gmund am Tegernsee"]
[Date "2023.10.31"]
[Round "4.40"]
[White "Kaiser, Elmar"]
[Black "Chassard, Cedric"]
[Result "0-1"]
[ECO "B97"]
[WhiteElo "2135"]
[BlackElo "2326"]
[Annotator "RC"]
[PlyCount "118"]
[EventDate "2023.10.04"]
[EventType "swiss"]
[EventCountry "GER"]
[SourceTitle "playchess.com"]
[Source "ChessBase"]
[SourceQuality "1"]
[TimeControl "40/5400+30:1800+30"]

1. e4 {[%emt 0:01:29]} c5 {[%emt 0:00:05]} 2. Nf3 {[%emt 0:00:06]} d6 {[%emt 0:00:04]} 3. d4 {[%emt 0:00:03]} cxd4 {[%emt 0:00:03]} 4. Nxd4 {[%emt 0:00:03]} Nf6 {[%emt 0:00:08]} 5. Nc3 {[%emt 0:00:03]} a6 {[%emt 0:00:04]} 6. Bg5 {[%emt 0:00:04]} e6 {[%emt 0:00:05]} 7. f4 {[%emt 0:00:10]} Qb6 {[%emt 0:00:03]} 8. Qd2 {[%emt 0:00:19]} Qxb2 {[%emt 0:00:46]} 9. Rb1 {[%emt 0:00:46]} Qa3 {[%emt 0:01:29]} 10. Be2 {[%emt 0:01:33]} Be7 {[%emt 0:07:27]} 11. O-O {[%emt 0:01:36]} Nc6 {[%emt 0:10:44]} 12. Nb3 {[%emt 0:15:57]} Qb4 {[%emt 0:02:11]} 13. Bf3 {[%emt 0:03:15]} O-O {[%emt 0:02:39]} 14. Kh1 {[%emt 0:03:28]} Qb6 {[%emt 0:06:41]} 15. Rbe1 {[%emt 0:10:19]} h6 {[%emt 0:03:04]} 16. e5 {[%emt 0:03:49]} hxg5 {[%emt 0:09:48]} 17. exf6 {[%emt 0:01:53]} Bxf6 {[%emt 0:01:03]} 18. fxg5 {[%emt 0:04:07]} Be5 {[%emt 0:02:56]} 19. Re4 {[%emt 0:09:12]} Ne7 {[%emt 0:02:48]} 20. Rxe5 {[%emt 0:07:52]} dxe5 {[%emt 0:00:49]} 21. Ne4 {[%emt 0:01:16]} Nd5 {[%emt 0:15:55]} 22. c4 {[%emt 0:02:30]} f5 {[%emt 0:00:58]} 23. gxf6 {[%emt 0:00:45]} Nxf6 {[%emt 0:00:06]} 24. Nbc5 {[%emt 0:04:17]} Nxe4 {[%emt 0:00:27]} 25. Nxe4 {[%emt 0:02:26]} Qd4 {[%emt 0:00:09]} 26. Qe2 {[%emt 0:04:14]} Qd8 {[%emt 0:05:30]} 27. Rd1 {[%emt 0:01:40]} Qe7 {[%emt 0:01:03]} 28. Qe3 {[%emt 0:00:08]} Bd7 {[%emt 0:01:11]} 29. Ng5 {[%emt 0:01:45]} Bc6 {[%emt 0:00:50]} 30. Bg4 {[%emt 0:03:24]} Bd7 {[%emt 0:15:09]} 31. h4 {[%emt 0:00:39]} Rf6 {[%emt 0:00:27]} 32. Qxe5 {[%emt 0:05:54]} Raf8 {[%emt 0:01:00]} 33. Rd6 {[%emt 0:02:24]} Bc8 {[%emt 0:02:01]} 34. Kh2 {[%emt 0:10:04]} Rh6 35. Kh3 {[%emt 0:00:00]} Qf6 {[%emt 0:08:08]} 36. Qe3 {[%emt 0:00:00]} Qf4 {[%emt 0:02:01]} 37. Qxf4 {[%emt 0:00:00]} Rxf4 {[%emt 0:00:06]} 38. Kg3 {[%emt 0:00:00]} Rf8 {[%emt 0:00:13]} 39. Bf3 {[%emt 0:00:35]} Rhf6 {[%emt 0:00:16]} 40. Be4 {[%emt 0:01:43]} e5 {[%emt 0:01:29]} 41. Rd5 {[%emt 0:12:55]} Bf5 {[%emt 0:09:23]} 42. Rxe5 {[%emt 0:01:56]} Bxe4 {[%emt 0:00:07]} 43. Rxe4 {[%emt 0:00:24]} Rc8 {[%emt 0:01:18]} 44. Re7 {[%emt 0:01:34]} b6 {[%emt 0:01:34]} 45. Ra7 {[%emt 0:01:06]} a5 {[%emt 0:00:12]} 46. Ne4 {[%emt 0:04:23]} Re6 {[%emt 0:02:09]} 47. Ng5 {[%emt 0:01:01]} Re3+ {[%emt 0:03:25]} 48. Kh2 {[%emt 0:00:50]} g6 {[%emt 0:02:17]} 49. Rb7 {[%emt 0:11:03]} Rxc4 {[%emt 0:02:31]} 50. Rb8+ {[%emt 0:00:00]} Kg7 {[%emt 0:00:30]} 51. Rb7+ {[%emt 0:00:00]} Kf8 {[%emt 0:00:30]} 52. Rb8+ {[%emt 0:00:00]} Ke7 {[%emt 0:00:30]} 53. Rb7+ {[%emt 0:00:00]} Ke8 {[%emt 0:00:30]} 54. Rxb6 {[%emt 0:00:00]} Rxh4+ {[%emt 0:00:30]} 55. Kg1 {[%emt 0:00:00]} Rg4 {[%emt 0:02:26]} 56. Nh7 {[%emt 0:00:00]} Kf7 {[%emt 0:02:37]} 57. Rb7+ {[%emt 0:00:00]} Re7 {[%emt 0:00:17]} 58. Rb5 {[%emt 0:00:00]} Kg7 {[%emt 0:01:18]} 59. Ng5 {[%emt 0:00:00]} Re2 {[%emt 0:00:45]} 0-1

[Event "26th OIBM 2023"]
[Site "Gmund am Tegernsee"]
[Date "2023.10.31"]
[Round "4.41"]
[White "Unuk, Laura"]
[Black "Thiel, Kuno"]
[Result "1-0"]
[ECO "A45"]
[WhiteElo "2313"]
[BlackElo "2110"]
[Annotator "RC"]
[PlyCount "113"]
[EventDate "2023.10.04"]
[EventType "swiss"]
[EventCountry "GER"]
[SourceTitle "playchess.com"]
[Source "ChessBase"]
[SourceQuality "1"]
[TimeControl "40/5400+30:1800+30"]

1. d4 {[%emt 0:00:04]} Nf6 {[%emt 0:00:22]} 2. g3 {[%emt 0:00:13]} c5 {[%emt 0:00:19]} 3. Bg2 {[%emt 0:00:57]} cxd4 {[%emt 0:00:13]} 4. Qxd4 {[%emt 0:03:21]} Nc6 {[%emt 0:02:25]} 5. Qa4 {[%emt 0:04:09]} g6 {[%emt 0:02:11]} 6. c3 {[%emt 0:03:43]} Bg7 {[%emt 0:00:31]} 7. Nf3 {[%emt 0:01:02]} O-O {[%emt 0:00:26]} 8. O-O {[%emt 0:00:54]} d5 {[%emt 0:06:29]} 9. Na3 {[%emt 0:10:16]} Bf5 {[%emt 0:08:46]} 10. Bf4 {[%emt 0:03:37]} Qb6 {[%emt 0:07:55]} 11. Nb5 {[%emt 0:16:20]} a6 {[%emt 0:05:16]} 12. Nbd4 {[%emt 0:00:33]} Be4 {[%emt 0:07:28]} 13. Nb3 {[%emt 0:06:10]} Rfe8 {[%emt 0:08:02]} 14. Be3 {[%emt 0:03:05]} Qc7 {[%emt 0:01:01]} 15. Nc5 {[%emt 0:06:57]} b5 {[%emt 0:05:47]} 16. Qd1 {[%emt 0:01:08]} Bxf3 {[%emt 0:14:11]} 17. exf3 {[%emt 0:00:37]} Na5 {[%emt 0:04:18]} 18. b3 {[%emt 0:02:50]} e6 {[%emt 0:03:21]} 19. Rc1 {[%emt 0:01:39]} Red8 {[%emt 0:01:10]} 20. Qe2 {[%emt 0:02:48]} Nd7 {[%emt 0:02:36]} 21. Nd3 {[%emt 0:02:17]} Nc6 {[%emt 0:01:35]} 22. f4 {[%emt 0:01:15]} Rac8 {[%emt 0:01:09]} 23. Rfd1 {[%emt 0:02:04]} Ne7 {[%emt 0:01:54]} 24. g4 {[%emt 0:07:07]} Qa5 {[%emt 0:05:31]} 25. Nc5 {[%emt 0:03:09]} Nxc5 {[%emt 0:00:48]} 26. Bxc5 {[%emt 0:02:58]} Rxc5 {[%emt 0:03:54]} 27. b4 {[%emt 0:00:05]} Qc7 {[%emt 0:00:03]} 28. bxc5 {[%emt 0:00:04]} Qxc5 {[%emt 0:00:02]} 29. c4 {[%emt 0:06:29]} bxc4 {[%emt 0:01:34]} 30. Rxc4 {[%emt 0:00:20]} Qa5 {[%emt 0:01:10]} 31. Rc2 {[%emt 0:01:07]} Qa4 {[%emt 0:00:19]} 32. Rc7 {[%emt 0:01:30]} Nc6 {[%emt 0:01:10]} 33. Rc1 {[%emt 0:02:59]} Nd4 {[%emt 0:00:01]} 34. Qd2 {[%emt 0:00:58]} h6 {[%emt 0:03:22]} 35. Rc8 {[%emt 0:00:52]} Qe8 {[%emt 0:00:37]} 36. Rxd8 {[%emt 0:00:29]} Qxd8 {[%emt 0:00:03]} 37. Kh1 {[%emt 0:00:33]} Qh4 {[%emt 0:00:23]} 38. f3 {[%emt 0:02:54]} Qe7 {[%emt 0:00:17]} 39. Qe3 {[%emt 0:00:37]} a5 {[%emt 0:00:25]} 40. Bf1 {[%emt 0:00:44]} Qb4 {[%emt 0:00:15]} 41. Qc3 {[%emt 0:07:43]} Qa4 {[%emt 0:01:41]} 42. a3 {[%emt 0:08:13]} Nb3 {[%emt 0:07:58]} 43. Qc8+ {[%emt 0:02:35]} Kh7 {[%emt 0:03:19]} 44. Rb1 {[%emt 0:01:45]} Qxa3 {[%emt 0:00:10]} 45. Bd3 {[%emt 0:00:46]} a4 {[%emt 0:02:48]} 46. f5 {[%emt 0:01:05]} exf5 {[%emt 0:03:13]} 47. gxf5 {[%emt 0:00:35]} Qc5 {[%emt 0:05:47]} 48. fxg6+ {[%emt 0:03:16]} fxg6 {[%emt 0:00:02]} 49. Qe8 {[%emt 0:01:41]} Qf8 {[%emt 0:00:11]} 50. Qxg6+ {[%emt 0:00:24]} Kg8 {[%emt 0:00:04]} 51. Qh7+ {[%emt 0:01:18]} Kf7 {[%emt 0:00:07]} 52. Qf5+ {[%emt 0:01:06]} Kg8 {[%emt 0:00:51]} 53. Qxd5+ {[%emt 0:00:04]} Kh8 {[%emt 0:00:39]} 54. Qe4 {[%emt 0:00:26]} Kg8 {[%emt 0:00:08]} 55. Qh7+ {[%emt 0:02:04]} Kf7 {[%emt 0:00:07]} 56. Re1 {[%emt 0:01:31]} Nd4 {[%emt 0:00:47]} 57. Qg6+ {[%emt 0:00:33]} 1-0

[Event "26th OIBM 2023"]
[Site "Gmund am Tegernsee"]
[Date "2023.10.31"]
[Round "4.42"]
[White "Sieglen, Joachim"]
[Black "Mai, Philipp"]
[Result "1/2-1/2"]
[ECO "E92"]
[WhiteElo "2110"]
[BlackElo "2313"]
[Annotator "RC"]
[PlyCount "82"]
[EventDate "2023.10.04"]
[EventType "swiss"]
[EventCountry "GER"]
[SourceTitle "playchess.com"]
[Source "ChessBase"]
[SourceQuality "1"]
[TimeControl "40/5400+30:1800+30"]

1. d4 {[%emt 0:00:07]} Nf6 {[%emt 0:00:11]} 2. c4 {[%emt 0:00:05]} g6 {[%emt 0:00:09]} 3. Nc3 {[%emt 0:00:06]} Bg7 {[%emt 0:00:10]} 4. e4 {[%emt 0:00:06]} d6 {[%emt 0:00:11]} 5. Nf3 {[%emt 0:00:08]} O-O {[%emt 0:00:16]} 6. Be2 {[%emt 0:00:02]} e5 {[%emt 0:00:16]} 7. Be3 {[%emt 0:00:04]} Ng4 {[%emt 0:02:40]} 8. Bg5 {[%emt 0:00:16]} f6 {[%emt 0:00:18]} 9. Bh4 {[%emt 0:00:06]} Qe8 {[%emt 0:06:09]} 10. d5 {[%emt 0:19:09]} f5 {[%emt 0:08:00]} 11. Nd2 {[%emt 0:00:11]} Nf6 {[%emt 0:03:00]} 12. h3 {[%emt 0:10:42]} a5 {[%emt 0:24:30]} 13. g4 {[%emt 0:01:22]} Na6 {[%emt 0:00:38]} 14. f3 {[%emt 0:02:13]} Nc5 {[%emt 0:01:16]} 15. Qc2 {[%emt 0:01:14]} Kh8 {[%emt 0:04:55]} 16. O-O-O {[%emt 0:02:04]} Bd7 {[%emt 0:08:47]} 17. Nb3 {[%emt 0:12:21]} Nxb3+ {[%emt 0:02:19]} 18. Qxb3 {[%emt 0:00:22]} Qb8 {[%emt 0:00:51]} 19. Qc2 {[%emt 0:04:53]} fxe4 {[%emt 0:06:33]} 20. fxe4 {[%emt 0:01:50]} Ng8 {[%emt 0:01:33]} 21. Bg5 {[%emt 0:11:08]} Rf4 {[%emt 0:05:31]} 22. Bxf4 {[%emt 0:02:56]} exf4 {[%emt 0:00:07]} 23. g5 {[%emt 0:01:14]} Qd8 {[%emt 0:03:23]} 24. h4 {[%emt 0:02:46]} Qe7 {[%emt 0:05:05]} 25. Rhg1 {[%emt 0:06:28]} Rf8 {[%emt 0:02:03]} 26. Bf3 {[%emt 0:01:15]} Qe5 {[%emt 0:01:15]} 27. Rg2 {[%emt 0:03:05]} Ne7 {[%emt 0:00:32]} 28. Kb1 {[%emt 0:02:41]} Nc8 {[%emt 0:02:16]} 29. Qd3 {[%emt 0:02:25]} Nb6 {[%emt 0:00:52]} 30. Rc2 {[%emt 0:00:56]} Na4 {[%emt 0:02:09]} 31. Rdd2 {[%emt 0:01:45]} Nc5 {[%emt 0:00:22]} 32. Qf1 {[%emt 0:01:19]} a4 {[%emt 0:00:31]} 33. a3 {[%emt 0:02:35]} Ra8 {[%emt 0:02:30]} 34. Rd1 {[%emt 0:02:29]} Kg8 {[%emt 0:00:34]} 35. Qg2 {[%emt 0:00:18]} Rb8 {[%emt 0:01:49]} 36. Bg4 {[%emt 0:03:25]} Be8 {[%emt 0:03:52]} 37. Qf3 {[%emt 0:02:53]} b5 {[%emt 0:00:29]} 38. Rf1 {[%emt 0:01:41]} bxc4 {[%emt 0:01:06]} 39. Qxf4 {[%emt 0:00:12]} Qe7 {[%emt 0:00:27]} 40. e5 {[%emt 0:00:33]} Bxe5 {[%emt 0:00:42]} 41. Qxc4 {[%emt 0:30:03]} Qg7 {[%emt 0:32:43]} 1/2-1/2

[Event "26th OIBM 2023"]
[Site "Gmund am Tegernsee"]
[Date "2023.10.31"]
[Round "4.43"]
[White "Schuster, Karsten"]
[Black "Martin Fernandez, Rodrigo"]
[Result "1-0"]
[ECO "A45"]
[WhiteElo "2309"]
[BlackElo "2092"]
[Annotator "RC"]
[PlyCount "57"]
[EventDate "2023.10.04"]
[EventType "swiss"]
[EventCountry "GER"]
[SourceTitle "playchess.com"]
[Source "ChessBase"]
[SourceQuality "1"]
[TimeControl "40/5400+30:1800+30"]

1. d4 {[%emt 0:00:02]} Nf6 {[%emt 0:02:51]} 2. Bg5 {[%emt 0:00:22]} Ne4 {[%emt 0:00:09]} 3. Bf4 {[%emt 0:00:05]} c5 {[%emt 0:00:14]} 4. dxc5 {[%emt 0:00:14]} Nxc5 {[%emt 0:01:58]} 5. Nc3 {[%emt 0:06:15]} d6 {[%emt 0:01:45]} 6. e4 {[%emt 0:00:43]} Nc6 {[%emt 0:01:34]} 7. Bc4 {[%emt 0:01:43]} Be6 {[%emt 0:07:37]} 8. Bxe6 {[%emt 0:08:40]} Nxe6 {[%emt 0:00:39]} 9. Be3 {[%emt 0:00:03]} g6 {[%emt 0:00:50]} 10. h4 {[%emt 0:00:21]} h5 {[%emt 0:00:53]} 11. f4 {[%emt 0:08:53]} Bg7 {[%emt 0:07:49]} 12. Nge2 {[%emt 0:02:43]} Qa5 {[%emt 0:04:02]} 13. a3 {[%emt 0:03:11]} Nf8 {[%emt 0:05:51]} 14. b4 {[%emt 0:03:44]} Qd8 {[%emt 0:00:58]} 15. Qd3 {[%emt 0:08:26]} Nd7 {[%emt 0:01:11]} 16. Rd1 {[%emt 0:01:40]} a6 {[%emt 0:04:04]} 17. Nd5 {[%emt 0:04:38]} O-O {[%emt 0:08:55]} 18. g4 {[%emt 0:05:47]} e6 {[%emt 0:12:47]} 19. Ndc3 {[%emt 0:03:29]} hxg4 {[%emt 0:00:38]} 20. h5 {[%emt 0:01:20]} gxh5 {[%emt 0:03:18]} 21. Rxh5 {[%emt 0:03:31]} Nf6 {[%emt 0:07:50]} 22. Rg5 {[%emt 0:06:45]} e5 {[%emt 0:08:39]} 23. Ng3 {[%emt 0:03:21]} exf4 {[%emt 0:03:13]} 24. Nf5 {[%emt 0:02:44]} Nh5 {[%emt 0:06:08]} 25. Rxh5 {[%emt 0:06:44]} Ne5 {[%emt 0:00:58]} 26. Qe2 {[%emt 0:04:07]} Nf3+ {[%emt 0:01:27]} 27. Kf1 {[%emt 0:00:30]} fxe3 {[%emt 0:02:06]} 28. Qxe3 {[%emt 0:00:28]} Qf6 {[%emt 0:01:05]} 29. Nd5 {[%emt 0:00:29]} 1-0

[Event "26th OIBM 2023"]
[Site "Gmund am Tegernsee"]
[Date "2023.11.01"]
[Round "5.1"]
[White "Schmider, Niklas"]
[Black "Stocek, Jiri"]
[Result "1/2-1/2"]
[ECO "B41"]
[WhiteElo "2395"]
[BlackElo "2535"]
[Annotator "TA"]
[PlyCount "123"]
[EventDate "2023.10.04"]
[EventType "swiss"]
[EventCountry "GER"]
[SourceTitle "playchess.com"]
[Source "ChessBase"]
[SourceQuality "1"]
[TimeControl "40/5400+30:1800+30"]

{[%evp 20,123,46,51,63,37,40,37,42,30,68,48,48,42,62,48,87,0,90,94,87,97,93,82,126,118,109,112,210,84,87,62,63,53,64,64,52,65,81,77,84,100,119,119,116,115,115,115,109,110,110,93,114,112,162,160,154,95,97,97,97,97,119,119,119,119,119,110,105,87,78,79,142,142,138,98,119,78,77,77,118,77,85,77,77,77,77,77,77,74,74,0,77,77,77,77,77,36,77,36,36,36,77,0,0,0]} 1. e4 {[%emt 0:00:03]} c5 {[%emt 0:01:15]} 2. Nf3 {[%emt 0:03:15]} e6 {[%emt 0:00:43]} 3. d4 {[%emt 0:00:06]} cxd4 {[%emt 0:00:05]} 4. Nxd4 {[%emt 0:00:05]} a6 {[%emt 0:00:12]} 5. c4 {[%emt 0:00:27]} Nf6 {[%emt 0:00:49]} 6. Nc3 {[%emt 0:00:06]} Qc7 {[%emt 0:00:21]} 7. a3 {[%emt 0:01:22]} b6 {[%emt 0:00:32]} 8. Be3 {[%emt 0:00:50]} Bb7 {[%emt 0:00:23]} 9. f3 {[%emt 0:00:38]} Be7 {[%emt 0:02:02]} 10. Be2 {[%emt 0:00:17]} d6 {[%emt 0:00:42]} 11. O-O {[%emt 0:00:32]} Nbd7 {[%emt 0:00:08] B41: Sicilian: Kan Variation: 5 c4.} 12. Qd2 {[%emt 0:00:59]} Rc8 {[%emt 0:00:42]} 13. Rfc1 {[%emt 0:00:38]} Qb8 {[%emt 0:00:19] White is slightly better.} 14. b4 {[%emt 0:01:27]} h5 {[%emt 0:01:14] [#]} 15. Nb3 $146 {[%emt 0:06:34]} ({Predecessor:} 15. Rab1 h4 16. a4 h3 17. g3 Kf8 18. a5 Ne5 19. Na4 d5 20. exd5 exd5 21. Nxb6 dxc4 22. Nxc8 Qxc8 {1-0 Erdogdu,M (2407)-Luong,P (2229) Titled Tuesday intern op 02nd Nov blitz 2021 (1)}) 15... h4 {[%emt 0:03:25]} 16. Na4 {[%emt 0:31:57]} h3 {[%emt 0:15:33]} 17. g3 {[%emt 0:01:17]} (17. Nxb6 Nxb6 18. Bxb6 hxg2 $15) (17. Bxb6 $2 Bc6 18. b5 Nxb6 $19) (17. g4 {is interesting.} Nxg4 18. fxg4 Bxe4 19. Rf1) 17... Bd8 {[%emt 0:16:44]} 18. Rd1 {[%emt 0:02:39]} (18. Bf4 $16) 18... Bc7 {[%emt 0:02:40]} (18... Bxe4 $11 19. fxe4 Nxe4) 19. Bf4 $16 {[%emt 0:02:50][%cal Rf4d6]} Ne5 {[%emt 0:12:40]} 20. Bxe5 {[%emt 0:07:32]} dxe5 {[%emt 0:01:46]} 21. Bf1 {[%emt 0:10:37]} Ke7 {[%emt 0:02:29]} 22. Qe3 {[%emt 0:01:41]} Bc6 {[%emt 0:01:23]} 23. Nb2 {[%emt 0:01:37]} a5 {[%emt 0:02:03]} (23... b5 $16) 24. Nd3 {[%emt 0:09:34]} (24. b5 $1 $18 {[%cal Rb5c6] is the precise move to win.} Be8 25. c5) 24... Ba4 {[%emt 0:04:57]} 25. Nf2 {[%emt 0:00:31]} Rhd8 {[%emt 0:03:23]} 26. Bxh3 {[%emt 0:01:56]} Rxd1+ {[%emt 0:00:36]} 27. Rxd1 {[%emt 0:00:49]} Bd6 {[%emt 0:02:00]} 28. Qc3 {[%emt 0:00:49]} (28. bxa5 bxa5 29. Rb1 Bxa3 $15) 28... Bb5 {[%emt 0:09:12]} 29. Bf1 {[%emt 0:04:34]} ({But not} 29. bxa5 Bxc4 30. Rc1 Bxa3 $15) 29... axb4 {[%emt 0:02:27]} 30. axb4 {[%emt 0:00:10]} Bxc4 {[%emt 0:04:34]} 31. Bxc4 {[%emt 0:00:02] Threatens to win with b5.} b5 {[%emt 0:00:09] [#]} 32. Nc5 $1 {[%emt 0:00:19] And now Be2 would win.} bxc4 {[%emt 0:00:18]} 33. Qxc4 {[%emt 0:00:13]} Qa7 {[%emt 0:01:46]} 34. Nfd3 {[%emt 0:01:34][%cal Bf2d3,Bd3c5,Bc5d7][%mdl 32] Excellent horsemanship.} Nd7 {[%emt 0:01:25][%cal Rd6c5,Bf6d7,Bd7b8,Bb8a6][%mdl 32]} 35. Rc1 {[%emt 0:00:04]} Nb8 {[%emt 0:03:50]} 36. Kg2 {[%emt 0:04:00]} Bxc5 {[%emt 0:00:32]} (36... Nc6 $16 {was called for.}) 37. Nxc5 $18 {[%emt 0:00:32]} Qa3 {[%emt 0:01:10]} 38. Rc2 {[%emt 0:05:04]} (38. Rc3 $142 Qa1 39. Rc2) 38... Na6 $16 {[%emt 0:03:11][%mdl 64] Deflection} 39. Qb5 {[%emt 0:00:58]} (39. Qxa6 $2 Qxa6 40. Nxa6 Rxc2+ 41. Kg1 Kd6 $19) 39... Rc7 {[%emt 0:00:43] [#] Wards off Qd7+} 40. Qb6 $1 {[%emt 0:01:09] Strongly threatening Rd2.} (40. Qxa6 $2 Qxa6 41. Nxa6 Rxc2+ 42. Kg1 Kd6 $19) 40... Kf6 {[%emt 0:01:26]} 41. Qd6 {[%emt 0:12:22] White is more active.} (41. Qxa6 $2 Qxa6 42. Nxa6 Rxc2+ 43. Kg1 Ke7 $19) 41... Qxb4 {[%emt 0:05:09][%cal Rc7c5]} 42. Nd7+ {[%emt 0:00:47][%mdl 64] Deflection, Double Attack} Kg6 {[%emt 0:00:15]} 43. Nxe5+ {[%emt 0:00:34]} (43. Qxa6 $2 {perishes.} Rxc2+ 44. Kh3 Qd2 45. Nxe5+ Kh5 46. g4+ Kg5 47. Nxf7+ Kf6 $19) 43... Kh7 {[%emt 0:00:00]} 44. Qd3 {[%emt 0:02:25] Rxc7 would be deadly.} (44. Qxa6 $2 {loses.} Rxc2+ 45. Kh3 Qc5 $19) 44... Rxc2+ {[%emt 0:05:23]} 45. Qxc2 {[%emt 0:00:01][%mdl 4096] Endgame KQN-KQN} Qb7 {[%emt 0:01:06] [#]} (45... f6 $142) 46. f4 $1 {[%emt 0:03:51]} Kg8 {[%emt 0:04:08]} 47. Nf3 {[%emt 0:02:09]} Nc7 {[%emt 0:01:27]} 48. h4 {[%emt 0:01:56]} Ne8 {[%emt 0:00:49]} 49. Qd3 {[%emt 0:02:07]} Qa8 {[%emt 0:04:03]} 50. Ng5 {[%emt 0:02:23] Hoping for Qd7.} Nf6 {[%emt 0:00:11] Prevents Qd7.} 51. Kh3 {[%emt 0:01:00]} Nh7 {[%emt 0:00:25]} 52. Nf3 {[%emt 0:01:33]} Nf6 {[%emt 0:00:34]} 53. e5 {[%emt 0:00:41]} Ne4 {[%emt 0:00:43]} 54. Qe2 {[%emt 0:02:46] Against Nf2+} Nc3 {[%emt 0:02:30]} 55. Qd3 {[%emt 0:01:41]} Ne4 {[%emt 0:00:10] ( -> ...Nf2+)} 56. Qc2 {[%emt 0:00:19] Dodges Nf2+} g6 {[%emt 0:03:18]} 57. Nh2 {[%emt 0:00:54]} Kg7 {[%emt 0:00:27]} 58. Qg2 {[%emt 0:01:08]} Qa4 {[%emt 0:02:13]} 59. Qf3 {[%emt 0:00:46]} Qc2 {[%emt 0:01:09]} 60. Ng4 {[%emt 0:00:24]} Qb1 {[%emt 0:02:20]} 61. Nh2 {[%emt 0:00:45]} (61. Kg2 $16) 61... Qc2 $11 {[%emt 0:00:48]} 62. Ng4 {[%emt 0:00:27] Black defended with fortune.   Weighted Error Value: White=0.18 (very precise) /Black=0.13 (very precise)} 1/2-1/2